bitfinex-derivatives/quotes_SOLF0:USTF0_20251208
["timestamp","ask_amount","ask_price","bid_price","bid_amount"]
[1765203803339,101.1622,138.4,138.33,3.22]
[1765203803638,101.1162,138.46,138.36,3.22]
[1765203803842,6.5014,138.44,138.36,3.22]
[1765203804444,6.5003,138.46,138.38,3.22]
[1765203804628,6.5003,138.46,138.41,0.05101938]
[1765203804832,0.05508971,138.43,138.41,3.27101938]
[1765203806841,0.05508971,138.43,138.41,0.05101938]
[1765203808040,0.05508971,138.43,138.41,3.27101938]
[1765203808240,0.05508971,138.43,138.41,0.05101938]
[1765203809535,6.55698971,138.43,138.41,0.05101938]
[1765203817745,6.55698971,138.43,138.41,3.27101938]
[1765203817952,6.55698971,138.43,138.41,0.05101938]
[1765203823764,6.55698971,138.43,138.41,3.27101938]
[1765203823964,0.05508971,138.43,138.41,3.27101938]
[1765203834072,6.55678971,138.43,138.41,0.05101938]
[1765203836571,6.55678971,138.43,138.41,3.33101938]
[1765203838575,0.05508971,138.43,138.41,3.33101938]
[1765203838873,0.05508971,138.43,138.42,3.28]
[1765203839074,0.05508971,138.43,138.41,10.98101938]
[1765203840578,6.55678971,138.43,138.41,10.98101938]
[1765203841176,6.55678971,138.43,138.42,3.07]
[1765203841373,0.05508971,138.43,138.42,3.07]
[1765203842171,101.0922,138.49,138.42,3.07]
[1765203842875,106.8916457,138.5,138.41,10.93]
[1765203842876,101.1084,138.47,138.41,10.93]
[1765203843179,0.04738506,138.45,138.43,0.05398605]
[1765203844579,6.5012,138.44,138.43,0.05398605]
[1765203854784,8.72923644,138.44,138.43,0.05398605]
[1765203855489,69.72923644,138.44,138.43,0.05398605]
[1765203855687,69.72923644,138.44,138.37,9.69506066]
[1765203855688,6.5034,138.39,138.37,3.07]
[1765203855894,6.5034,138.39,138.34,11.04237523]
[1765203855895,2.22803644,138.39,138.34,9.69506066]
[1765203856188,2.22803644,138.37,138.34,3.07]
[1765203856389,8.73253644,138.37,138.34,3.07]
[1765203856788,8.78099299,138.37,138.34,3.11643658]
[1765203857891,2.27649299,138.37,138.34,3.11643658]
[1765203858187,0.04845655,138.37,138.34,3.11643658]
[1765203859190,0.04845655,138.37,138.34,5.34447302]
[1765203859390,0.04845655,138.37,138.35,3.13]
[1765203860189,2.27649299,138.37,138.34,3.17643658]
[1765203860693,6.5049,138.36,138.34,0.04643658]
[1765203863895,2.27649299,138.37,138.32,15.03]
[1765203863896,6.5058,138.34,138.32,15.03]
[1765203864197,2.22803644,138.33,138.32,15.03]
[1765203864587,6.507,138.32,138.28,3.13]
[1765203865095,0.04631239,138.31,138.29,0.05539497]
[1765203865692,8.78184883,138.31,138.29,0.05539497]
[1765203873799,101.2365,138.3,138.26,11.97]
[1765203874001,2.22803644,138.27,138.26,11.97]
[1765203876894,6.55702594,138.28,138.26,15.1]
[1765203878894,6.55702594,138.28,138.26,11.97]
[1765203879602,6.55702594,138.28,138.25,0.0554079]
[1765203879603,6.5095,138.27,138.25,0.0554079]
[1765203879802,8.73753644,138.27,138.25,0.0554079]
[1765203880404,8.73753644,138.27,138.25,3.1854079]
[1765203880706,0.04802594,138.28,138.25,3.1854079]
[1765203882012,114.2007,138.36,138.27,3.13]
[1765203882013,101.1903,138.36,138.27,3.13]
[1765203882304,2.22803644,138.36,138.31,3.13]
[1765203883202,2.22803644,138.36,138.3,2.22803644]
[1765203883203,6.5516832,138.35,138.33,3.13]
[1765203883507,6.5516832,138.35,138.32,0.04602836]
[1765203883700,0.0459832,138.35,138.32,3.17602836]
[1765203884011,6.5059,138.34,138.32,3.17602836]
[1765203884300,0.0459832,138.35,138.32,3.17602836]
[1765203885608,6.5513832,138.35,138.32,3.17602836]
[1765203886314,8.73403644,138.34,138.32,0.04602836]
[1765203888705,69.73403644,138.34,138.32,0.04602836]
[1765203888905,61.5,138.33,138.32,0.04602836]
[1765203894109,101.2182,138.32,138.28,15.07]
[1765203894316,2.22803644,138.3,138.28,15.07]
[1765203894515,2.22803644,138.3,138.2,61.5]
[1765203894516,101.313,138.19,138.15,6.70685708]
[1765203894714,61.5,138.18,138.15,3.01]
[1765203895210,61.55091706,138.18,138.15,3.06437612]
[1765203895719,165.0983535,138.18,138.15,0.05437612]
[1765203896612,6.5141,138.17,138.15,0.05437612]
[1765203898420,6.5141,138.17,138.15,3.06437612]
[1765203899124,6.5141,138.17,138.15,0.05437612]
[1765203900321,107.8414,138.17,138.15,0.05437612]
[1765203900617,107.8414,138.17,138.09,3.01]
[1765203900618,6.5158,138.13,138.09,3.01]
[1765203900816,68.0558,138.13,138.09,3.01]
[1765203901612,6.56564733,138.12,138.1,0.05265391]
[1765203902721,107.92944733,138.12,138.1,0.05265391]
[1765203904617,107.92944733,138.12,138.04,3.01]
[1765203904618,6.5188,138.07,138.04,3.01]
[1765203904814,68.0788,138.07,138.04,3.01]
[1765203905117,68.0788,138.07,137.97,101.4714]
[1765203905334,61.56,138.07,138.02,3.01]
[1765203905621,0.05514941,138.06,138.04,3.01]
[1765203906016,0.05514941,138.06,138.03,0.05555625]
[1765203906225,162.9748,138.05,138.03,0.05555625]
[1765203906611,169.4945,138.05,138.03,0.05555625]
[1765203907721,101.4468,138.01,137.95,6.40211237]
[1765203907917,101.4468,138.01,137.96,3.02]
[1765203907918,61.56,138.0,137.96,3.02]
[1765203908218,61.56,138.0,137.95,6.40211237]
[1765203908423,61.56,138.0,137.96,3.02]
[1765203908627,61.58,138.02,137.96,3.02]
[1765203908829,0.04925681,137.99,137.98,3.02]
[1765203909813,61.58,138.04,137.98,3.02]
[1765203910012,6.5207,138.03,137.98,3.02]
[1765203910232,61.58,138.04,137.98,3.02]
[1765203910628,68.1002,138.04,137.98,3.02]
[1765203910830,0.04592188,138.02,138.0,3.06737434]
[1765203912129,61.6,138.06,138.0,3.06737434]
[1765203912319,6.43439281,138.1,138.03,3.02]
[1765203912320,6.5173,138.1,138.03,3.02]
[1765203913016,6.5178,138.09,138.03,3.02]
[1765203913327,0.05358623,138.07,138.05,3.06777456]
[1765203913523,0.05358623,138.07,138.05,3.02]
[1765203913733,0.05358623,138.07,138.05,3.07541709]
[1765203914433,0.05358623,138.07,138.05,0.05541709]
[1765203914734,0.05358623,138.07,138.05,3.07541709]
[1765203914923,0.05358623,138.07,138.05,0.05541709]
[1765203916630,0.05358623,138.07,138.05,3.07541709]
[1765203917434,0.05358623,138.07,138.05,0.05541709]
[1765203918029,68.17228623,138.07,138.05,0.05541709]
[1765203919033,101.4262,138.04,137.95,3.38211237]
[1765203919242,61.6,138.03,137.95,6.60211237]
[1765203920126,0.04614578,138.0,137.98,0.05556003]
[1765203921131,6.56824578,138.0,137.98,0.05556003]
[1765203921634,108.01994578,138.0,137.98,0.05556003]
[1765203922138,169.63984578,138.0,137.98,0.05556003]
[1765203922339,68.18824578,138.0,137.98,0.05556003]
[1765203922837,169.63964578,138.0,137.98,0.05556003]
[1765203924128,61.62,137.99,137.98,0.05556003]
[1765203924337,6.5235,137.97,137.95,3.38211237]
[1765203924835,6.5225,137.99,137.95,3.38211237]
[1765203925034,68.1425,137.99,137.95,3.38211237]
[1765203925225,68.1425,137.99,137.95,6.60211237]
[1765203925532,0.04614578,138.0,137.96,3.27101717]
[1765203927027,0.04614578,138.0,137.96,0.05101717]
[1765203927236,101.50124578,138.0,137.96,0.05101717]
[1765203927524,101.4588,137.99,137.96,0.05101717]
[1765203927736,163.0988,137.99,137.96,0.05101717]
[1765203928334,6.5232,137.98,137.96,0.05101717]
[1765203928639,0.04614578,138.0,137.96,3.27101717]
[1765203931540,0.04614578,138.0,137.97,3.22]
[1765203931940,6.5193,138.06,137.99,3.22]
[1765203932544,6.5193,138.06,138.0,3.22]
[1765203932942,0.05127612,138.04,138.03,3.22]
[1765203933134,6.5184,138.08,138.03,3.22]
[1765203933744,6.5186,138.07,138.03,3.22]
[1765203934247,0.05152157,138.06,138.04,3.27055317]
[1765203934447,6.5196,138.05,138.04,0.05133836]
[1765203935743,0.05152157,138.06,138.04,0.05133836]
[1765203936044,0.05152157,138.06,138.0,3.22]
[1765203936045,101.46222157,138.06,138.0,3.22]
[1765203936243,6.5205,138.03,137.97,3.22]
[1765203936436,101.4472,138.01,137.95,3.38211237]
[1765203936635,66.85373626,138.01,137.95,6.60211237]
[1765203937038,71.95015212,138.01,137.97,0.04845251]
[1765203937241,0.04838829,137.99,137.97,0.04845251]
[1765203937442,5.21373626,137.98,137.97,0.04845251]
[1765203937642,6.57088829,137.99,137.97,0.04845251]
[1765203937838,11.78462455,137.99,137.97,0.04845251]
[1765203938044,5.21373626,137.98,137.97,0.04845251]
[1765203938643,6.57088829,137.99,137.97,0.04845251]
[1765203939345,5.21373626,137.98,137.97,0.04845251]
[1765203940345,10.31015212,137.98,137.97,0.04845251]
[1765203941046,5.21373626,137.98,137.97,0.04845251]
[1765203941245,10.31015212,137.98,137.97,3.26845251]
[1765203941448,0.04838829,137.99,137.97,3.26845251]
[1765203941651,0.04838829,137.99,137.97,0.04845251]
[1765203941951,5.14480415,137.99,137.97,0.04845251]
[1765203942151,11.66740415,137.99,137.97,0.04845251]
[1765203942357,11.66740415,137.99,137.97,3.26845251]
[1765203942858,11.66740415,137.99,137.97,0.04845251]
[1765203943050,5.14480415,137.99,137.97,3.26845251]
[1765203943250,0.04838829,137.99,137.97,3.26845251]
[1765203943451,5.14480415,137.99,137.97,0.04845251]
[1765203943652,0.04838829,137.99,137.97,0.04845251]
[1765203943851,5.14480415,137.99,137.97,0.04845251]
[1765203944048,0.04838829,137.99,137.97,0.04845251]
[1765203944249,5.14480415,137.99,137.97,3.26845251]
[1765203944450,0.04838829,137.99,137.97,3.26845251]
[1765203944954,0.04838829,137.99,137.97,0.04845251]
[1765203945448,0.04838829,137.99,137.97,3.26845251]
[1765203946052,5.14480415,137.99,137.97,3.26845251]
[1765203946251,0.04838829,137.99,137.97,3.26845251]
[1765203946456,6.67831468,138.02,137.97,3.26845251]
[1765203946457,5.09641586,138.01,137.98,3.22]
[1765203946652,5.09641586,138.03,137.98,3.22]
[1765203946852,5.09641586,138.02,137.98,3.22]
[1765203947050,6.5203,138.04,137.98,3.22]
[1765203947051,5.09641586,138.03,137.98,3.22]
[1765203947252,5.09641586,138.02,137.98,3.22]
[1765203947455,0.04908407,138.01,137.99,0.04685842]
[1765203947666,0.04908407,138.01,138.0,3.22]
[1765203948157,2.57219697,138.02,138.0,3.22]
[1765203948358,6.5193,138.06,138.0,3.22]
[1765203948753,79.65754567,138.08,138.01,3.24]
[1765203948954,13.19661468,138.08,138.01,3.24]
[1765203949154,0.04745301,138.06,138.03,0.05398119]
[1765203949458,0.04745301,138.06,138.03,3.29398119]
[1765203951361,6.5195,138.05,138.03,3.29398119]
[1765203952258,6.5195,138.05,138.03,0.05398119]
[1765203953251,6.5206,138.03,137.97,3.24]
[1765203954153,0.05130743,138.01,137.99,3.28703983]
[1765203960555,6.5196,138.05,138.0,3.2]
[1765203960963,101.4006,138.07,138.0,3.2]
[1765203961157,6.521,138.02,137.98,3.2]
[1765203961364,101.4301,138.03,137.95,6.58211237]
[1765203961564,0.04588511,138.0,137.98,0.05549078]
[1765203962566,6.56778511,138.0,137.98,0.05549078]
[1765203970683,0.04588511,138.0,137.98,3.25549078]
[1765203973981,0.04588511,138.0,137.98,0.05549078]
[1765203974171,6.5237,137.96,137.95,3.38211237]
[1765203975476,6.5237,137.96,137.88,3.2]
[1765203975477,101.492,137.95,137.88,3.2]
[1765203975777,106.62211919,137.95,137.88,3.2]
[1765203975977,6.5256,137.92,137.88,3.2]
[1765203976682,6.57382972,137.91,137.89,0.05575059]
[1765203977378,6.5278,137.88,137.82,3.2]
[1765203978069,101.5364,137.89,137.82,3.2]
[1765203978265,101.5448,137.88,137.82,3.2]
[1765203978466,101.5448,137.88,137.84,0.04601424]
[1765203978467,0.04826879,137.86,137.84,0.04601424]
[1765203978871,0.04826879,137.86,137.79,64.8]
[1765203978872,101.5616,137.85,137.79,3.18]
[1765203979175,101.60306879,137.86,137.85,1.44]
[1765203979769,6.57666879,137.86,137.84,0.04961725]
[1765203979970,6.57666879,137.86,137.84,0.04854952]
[1765203980172,6.57666879,137.86,137.85,1.44]
[1765203981282,0.04826879,137.86,137.85,1.44]
[1765203981481,0.04826879,137.86,137.75,107.46365934]
[1765203981482,0.04826879,137.86,137.58,3.18]
[1765203981483,101.6724,137.7,137.58,3.18]
[1765203981678,163.335,137.7,137.58,3.18]
[1765203981877,6.21692736,137.69,137.58,3.18]
[1765203982077,6.21692736,137.68,137.58,3.18]
[1765203982274,6.21692736,137.67,137.58,9.7214]
[1765203982472,6.21692736,137.66,137.61,0.03863409]
[1765203982676,113.5964567,137.71,137.58,6.5414]
[1765203982677,6.21692736,137.65,137.58,6.5414]
[1765203982880,6.01184242,137.69,137.58,6.5414]
[1765203983077,6.01184242,137.68,137.58,6.5414]
[1765203983278,6.01184242,137.68,137.56,58.14]
[1765203983279,6.01184242,137.67,137.56,58.14]
[1765203983582,108.2279,137.68,137.56,58.14]
[1765203983583,0.05438587,137.63,137.61,3.18]
[1765203983880,0.05148076,137.63,137.61,3.23494223]
[1765203984075,5.99466477,137.67,137.61,3.23494223]
[1765203984282,5.99466477,137.66,137.61,3.23494223]
[1765203984581,5.99466477,137.65,137.61,3.23494223]
[1765203984883,108.2349,137.67,137.61,3.23494223]
[1765203985079,0.05075361,137.65,137.61,3.23494223]
[1765203985980,5.96646381,137.68,137.61,3.23494223]
[1765203986176,6.5365,137.7,137.62,3.18]
[1765203986478,108.1878,137.73,137.64,3.18]
[1765203986879,101.6604,137.72,137.64,3.18]
[1765203987079,0.04640928,137.7,137.68,3.18]
[1765203987876,0.04640928,137.7,137.67,3.23415392]
[1765203988878,0.04640928,137.7,137.67,0.05415392]
[1765203989080,101.7358,137.62,137.54,3.18]
[1765203989289,101.7119,137.65,137.54,3.18]
[1765203989290,101.7258,137.63,137.54,3.18]
[1765203989683,6.5388,137.65,137.56,3.18]
[1765203989871,101.6899,137.68,137.56,104.9523]
[1765203990073,0.00365853,137.63,137.62,3.18]
[1765203990377,101.6826,137.69,137.62,3.18]
[1765203991077,101.6667,137.71,137.62,3.18]
[1765203991078,108.2027,137.71,137.62,3.18]
[1765203991278,0.05432233,137.68,137.65,3.23423451]
[1765203995879,0.05432233,137.68,137.65,0.05423451]
[1765203996786,0.05432233,137.68,137.65,3.23423451]
[1765203998589,108.27852233,137.68,137.65,0.05423451]
[1765203999489,6.5378,137.67,137.65,0.05423451]
[1765204001181,101.7108,137.65,137.57,3.18]
[1765204001382,5.63837914,137.66,137.57,3.18]
[1765204001687,6.5391,137.64,137.57,3.18]
[1765204001901,107.33367914,137.67,137.57,3.18]
[1765204002084,101.6953,137.67,137.57,3.18]
[1765204002281,0.04955049,137.63,137.61,3.22900114]
[1765204003786,6.5381,137.66,137.61,3.22900114]
[1765204004494,6.5381,137.66,137.62,3.18]
[1765204004993,0.05121074,137.65,137.62,3.18]
[1765204006586,6.5373,137.68,137.62,3.18]
[1765204006989,6.5361,137.7,137.63,3.18]
[1765204007794,0.04745373,137.68,137.65,3.22573793]
[1765204008390,6.5353,137.72,137.66,3.21]
[1765204008588,6.5353,137.72,137.65,6.58393793]
[1765204008589,6.5353,137.72,137.68,3.21]
[1765204009290,0.05031766,137.71,137.69,0.0518462]
[1765204009498,0.05031766,137.71,137.69,3.2618462]
[1765204009999,0.05031766,137.71,137.69,0.0518462]
[1765204010199,0.05031766,137.71,137.69,3.2118462]
[1765204011094,12.2244968,137.71,137.69,0.0518462]
[1765204011394,5.63837914,137.7,137.69,0.0518462]
[1765204011700,6.5377,137.67,137.63,64.92]
[1765204011895,6.5377,137.67,137.64,3.16]
[1765204012299,5.66333798,137.66,137.64,3.16]
[1765204012505,6.5377,137.67,137.64,3.16]
[1765204012799,12.25727085,137.66,137.64,0.05337986]
[1765204013099,5.66409598,137.65,137.64,0.05337986]
[1765204013296,5.67150983,137.65,137.64,0.05337986]
[1765204014190,5.67150983,137.65,137.64,3.21337986]
[1765204015798,13.19940567,137.69,137.64,3.21337986]
[1765204015799,6.66260567,137.69,137.64,3.21337986]
[1765204016106,6.66260567,137.72,137.64,3.21337986]
[1765204016298,6.66260567,137.72,137.68,3.16]
[1765204016502,6.66260567,137.73,137.69,3.16]
[1765204016900,0.048392,137.72,137.7,3.20592301]
[1765204018308,6.66260567,137.74,137.71,3.16]
[1765204019013,6.66260567,137.75,137.71,3.16]
[1765204019315,6.70871837,137.74,137.71,3.16]
[1765204019621,0.0461127,137.74,137.73,3.16]
[1765204019910,0.0461127,137.74,137.73,64.92]
[1765204020212,6.66260567,137.77,137.75,3.16]
[1765204020412,3.19729441,137.8,137.75,3.16]
[1765204020610,8.81082337,137.83,137.75,3.16]
[1765204020914,8.81082337,137.83,137.78,3.16]
[1765204021105,0.04976583,137.8,137.79,61.76]
[1765204021412,110.37612337,137.85,137.79,61.76]
[1765204021413,0.05205306,137.81,137.79,61.76]
[1765204022014,0.05205306,137.81,137.79,64.92]
[1765204022214,0.05205306,137.81,137.8,3.16]
[1765204023322,0.05205306,137.81,137.79,61.76]
[1765204023510,0.05205306,137.81,137.79,64.92]
[1765204024218,0.05205306,137.81,137.78,3.20756737]
[1765204024422,0.05205306,137.81,137.79,61.74]
[1765204025811,0.05205306,137.81,137.78,61.78756737]
[1765204026619,0.05205306,137.81,137.79,3.08]
[1765204029125,0.05205306,137.81,137.79,61.72]
[1765204029328,0.05205306,137.81,137.78,0.04756737]
[1765204029513,3.10205306,137.81,137.78,61.76756737]
[1765204030714,104.69595306,137.81,137.78,0.04756737]
[1765204030929,9.5815,137.8,137.78,0.04756737]
[1765204031133,3.05,137.79,137.78,0.04756737]
[1765204036030,6.5315,137.8,137.75,61.72]
[1765204036031,3.05,137.77,137.75,61.72]
[1765204036925,9.5829,137.77,137.75,61.72]
[1765204037128,9.63669596,137.77,137.75,61.77265677]
[1765204038328,3.05,137.76,137.75,61.77265677]
[1765204038535,3.05,137.76,137.75,0.05265677]
[1765204039027,3.05,137.74,137.7,64.8]
[1765204039726,3.05,137.73,137.7,61.72]
[1765204039929,3.09908569,137.73,137.7,64.99660643]
[1765204040128,0.04908569,137.73,137.7,64.99660643]
[1765204040336,3.09908569,137.73,137.7,61.76660643]
[1765204041632,9.63378569,137.73,137.7,61.76660643]
[1765204042237,9.5853,137.72,137.7,61.76660643]
[1765204042630,3.05,137.71,137.7,61.76660643]
[1765204043138,3.05,137.71,137.7,0.04660643]
[1765204046443,9.5853,137.72,137.7,0.04660643]
[1765204047137,6.5353,137.72,137.7,3.27660643]
[1765204047335,0.04908569,137.73,137.7,3.27660643]
[1765204047530,3.09908569,137.73,137.7,3.27660643]
[1765204048247,0.04908569,137.73,137.7,3.27660643]
[1765204052341,0.04908569,137.73,137.71,3.23]
[1765204056351,3.09908569,137.73,137.7,0.04660643]
[1765204056546,3.09908569,137.73,137.7,3.27660643]
[1765204056949,0.04908569,137.73,137.7,3.27660643]
[1765204058148,0.04908569,137.73,137.71,3.23]
[1765204058550,0.04908569,137.73,137.71,64.97]
[1765204058854,0.04908569,137.73,137.72,3.23]
[1765204073970,9.5522,137.79,137.74,3.3]
[1765204074278,3.02,137.78,137.74,3.3]
[1765204074670,6.5323,137.78,137.74,3.3]
[1765204075068,0.05445951,137.77,137.76,3.3]
[1765204079978,9.6907,137.82,137.77,3.3]
[1765204080371,14.83856175,137.84,137.77,3.3]
[1765204080567,9.6897,137.84,137.78,3.3]
[1765204080772,14.83856175,137.84,137.78,3.3]
[1765204080976,0.05203882,137.82,137.8,3.34968553]
[1765204081678,0.05203882,137.82,137.8,65.06968553]
[1765204082882,0.05203882,137.82,137.81,3.3]
[1765204085887,6.5283,137.87,137.82,3.3]
[1765204086188,6.5283,137.87,137.83,3.3]
[1765204086882,0.05580022,137.86,137.85,3.3]
[1765204087083,0.05234941,137.87,137.85,3.3]
[1765204088882,3.21234941,137.87,137.84,0.05543275]
[1765204089194,3.16,137.85,137.84,0.05543275]
[1765204096195,3.16,137.81,137.75,3.3]
[1765204096489,3.16,137.81,137.75,5.54676216]
[1765204096686,9.6914,137.8,137.76,3.3]
[1765204097084,0.05230841,137.79,137.77,0.0537672]
[1765204097283,0.05230841,137.79,137.77,3.3537672]
[1765204097802,0.05230841,137.79,137.77,9.8863672]
[1765204097988,0.05230841,137.79,137.78,3.3]
[1765204099392,9.6901,137.83,137.78,3.3]
[1765204099601,11.98606216,137.85,137.8,3.19]
[1765204099786,3.21,137.84,137.8,3.19]
[1765204100593,0.05314989,137.83,137.81,3.23656762]
[1765204101801,0.05314989,137.83,137.81,5.48332978]
[1765204101997,0.05314989,137.83,137.82,3.19]
[1765204102695,0.00314989,137.83,137.82,3.19]
[1765204102901,3.21,137.9,137.82,3.19]
[1765204103089,3.21,137.9,137.85,3.19]
[1765204103295,3.21,137.9,137.86,3.19]
[1765204103600,106.96196216,137.93,137.86,3.19]
[1765204103903,5.51159722,137.91,137.88,0.04972469]
[1765204104203,3.21,137.9,137.88,0.04972469]
[1765204104597,0.05483506,137.91,137.88,3.23972469]
[1765204107407,3.26483506,137.91,137.88,0.04972469]
[1765204108606,9.7367,137.9,137.88,0.04972469]
[1765204109094,6.5267,137.9,137.88,3.23972469]
[1765204109301,3.26483506,137.91,137.88,0.04972469]
[1765204109500,0.05483506,137.91,137.88,3.23972469]
[1765204109695,0.05483506,137.91,137.89,3.19]
[1765204110502,0.05483506,137.91,137.88,3.23972469]
[1765204111210,3.26483506,137.91,137.88,0.04972469]
[1765204112109,0.05483506,137.91,137.9,5.43676216]
[1765204112914,0.05483506,137.91,137.9,3.19]
[1765204113704,3.21,137.97,137.9,3.19]
[1765204113909,3.21,137.97,137.91,64.87]
[1765204114509,6.5238,137.96,137.92,3.19]
[1765204114710,0.05075179,137.95,137.93,3.24385777]
[1765204115209,3.26075179,137.95,137.93,0.05385777]
[1765204115912,0.05075179,137.95,137.93,0.05385777]
[1765204116111,0.05075179,137.95,137.93,3.24385777]
[1765204117801,0.05075179,137.95,137.93,9.76875777]
[1765204118222,0.05075179,137.95,137.94,3.19]
[1765204119111,0.05075179,137.95,137.93,0.05385777]
[1765204119414,0.05075179,137.95,137.93,3.24385777]
[1765204120500,0.05075179,137.95,137.94,3.19]
[1765204121011,0.05075179,137.95,137.93,0.05385777]
[1765204121212,3.26075179,137.95,137.93,0.05385777]
[1765204123413,0.05075179,137.95,137.93,0.05385777]
[1765204123613,0.05075179,137.95,137.93,3.24385777]
[1765204124405,0.05075179,137.95,137.94,3.19]
[1765204124601,0.05075179,137.95,137.93,0.05385777]
[1765204124904,3.26075179,137.95,137.93,0.05385777]
[1765204125102,3.21,137.94,137.93,0.05385777]
[1765204128617,6.57505179,137.95,137.93,0.05385777]
[1765204128818,9.63505179,137.95,137.93,0.05385777]
[1765204129015,3.06,137.94,137.93,0.05385777]
[1765204129217,3.11075179,137.95,137.93,0.05385777]
[1765204131817,3.06,137.94,137.93,0.05385777]
[1765204132023,3.06,137.94,137.88,61.66]
[1765204132921,3.06,137.94,137.9,0.05242533]
[1765204133423,3.06,137.91,137.9,0.05242533]
[1765204136524,3.11305584,137.92,137.9,0.05242533]
[1765204139729,9.63895584,137.92,137.9,0.05242533]
[1765204139928,3.06,137.91,137.9,0.05242533]
[1765204144721,3.34305584,137.92,137.9,0.05242533]
[1765204146632,0.05305584,137.92,137.9,0.05242533]
[1765204146821,0.05305584,137.92,137.9,3.09242533]
[1765204148140,3.34305584,137.92,137.9,0.05242533]
[1765204149738,0.05305584,137.92,137.9,3.09242533]
[1765204150830,0.05305584,137.92,137.9,13.12582677]
[1765204151030,0.05305584,137.92,137.91,3.04]
[1765204153526,0.05305584,137.92,137.91,64.7]
[1765204166262,8.21509395,138.0,137.93,3.2]
[1765204166462,3.05,138.0,137.95,3.2]
[1765204166653,3.05,138.0,137.96,64.84]
[1765204167058,9.5723,137.99,137.96,64.84]
[1765204167261,9.62390188,137.99,137.96,64.88900409]
[1765204168657,3.10160188,137.99,137.96,68.39590553]
[1765204171165,0.05160188,137.99,137.97,3.2]
[1765204174868,3.05,137.98,137.96,61.68900409]
[1765204175675,3.05,137.98,137.96,64.88900409]
[1765204175977,3.05,137.98,137.96,61.68900409]
[1765204176576,3.05,137.98,137.96,64.88900409]
[1765204178683,3.05,137.97,137.96,61.68900409]
[1765204178880,3.10160188,137.99,137.96,64.88900409]
[1765204182285,3.10160188,137.99,137.97,3.2]
[1765204183979,3.05,137.98,137.96,61.68900409]
[1765204184184,3.05,137.98,137.96,0.04900409]
[1765204184585,9.5728,137.98,137.96,0.04900409]
[1765204184885,3.05,137.97,137.96,0.04900409]
[1765204185783,3.05,137.95,137.92,3.2]
[1765204186678,3.1042538,137.95,137.92,3.24573053]
[1765204193787,0.0542538,137.95,137.93,2.98]
[1765204194784,5.21854681,137.98,137.93,2.98]
[1765204194989,3.27,138.0,137.97,2.98]
[1765204195996,3.31986696,138.0,137.97,3.02593125]
[1765204197596,0.04986696,138.0,137.97,3.02593125]
[1765204198092,0.04986696,138.0,137.97,0.04593125]
[1765204198093,3.31986696,138.0,137.97,0.04593125]
[1765204198298,3.31986696,138.0,137.97,3.02593125]
[1765204200285,3.27,137.99,137.97,0.04593125]
[1765204200485,3.27,137.99,137.87,114.97605953]
[1765204200486,3.27,137.97,137.89,2.98]
[1765204200796,3.27,137.95,137.89,2.98]
[1765204200994,3.27,137.95,137.9,2.98]
[1765204201197,3.27,137.94,137.88,64.62]
[1765204201398,3.27,137.94,137.82,13.43265953]
[1765204201399,3.27,137.92,137.85,2.98]
[1765204201603,3.27,137.92,137.82,6.48690144]
[1765204201604,3.27,137.9,137.82,6.48690144]
[1765204201790,3.27,137.89,137.82,2.98]
[1765204202104,3.27,137.88,137.82,2.98]
[1765204202599,3.32449602,137.86,137.84,0.05101096]
[1765204203190,3.27,137.85,137.84,0.05101096]
[1765204203387,5.51633254,137.85,137.84,0.00101096]
[1765204203586,3.27,137.84,137.77,66.0]
[1765204203796,3.27,137.84,137.77,68.98]
[1765204203992,3.27,137.84,137.78,5.22633254]
[1765204204396,3.27,137.84,137.79,3.12]
[1765204204600,0.04999758,137.83,137.8,3.17514808]
[1765204205294,3.31999758,137.83,137.8,0.05514808]
[1765204205605,5.51633254,137.81,137.8,0.05514808]
[1765204206297,0.04999758,137.83,137.8,0.05514808]
[1765204206298,0.04999758,137.83,137.8,3.17514808]
[1765204206498,0.04999758,137.83,137.81,3.12]
[1765204206696,3.31999758,137.83,137.8,0.05514808]